bitfinex-derivatives/quotes_SOLF0:USTF0_20250821
["timestamp","ask_amount","ask_price","bid_price","bid_amount"]
[1755786616907,2.98,186.25,186.12,2.99]
[1755786617096,2.98,186.25,186.13,1.87560334]
[1755786617296,2.98,186.25,186.14,1.87560334]
[1755786617600,2.98,186.25,186.05,4.44791517]
[1755786617795,10.76757786,186.22,186.07,2.99]
[1755786617996,10.76757786,186.22,186.11,5.3738]
[1755786618307,10.76757786,186.22,186.12,1.87585823]
[1755786618499,10.76757786,186.22,186.13,1.87585823]
[1755786618700,10.76757786,186.22,186.1,2.99]
[1755786619000,10.76757786,186.22,186.11,1.87389904]
[1755786619196,10.76757786,186.22,186.12,1.87389904]
[1755786619197,2.98,186.22,186.12,1.87389904]
[1755786619498,7.78757786,186.26,186.14,2.99]
[1755786619704,2.98,186.25,186.09,2.99]
[1755786619905,2.98,186.21,186.1,1.87383892]
[1755786620203,2.98,186.21,186.11,1.87383892]
[1755786620404,2.98,186.21,186.12,1.87383892]
[1755786620708,7.78757786,186.18,186.02,4.44791517]
[1755786620895,2.98,186.17,186.03,4.86378032]
[1755786621095,2.98,186.17,186.04,1.87378032]
[1755786621401,7.78757786,186.18,186.06,2.99]
[1755786621604,2.98,186.22,186.09,5.3744]
[1755786621803,2.98,186.22,186.1,1.87378032]
[1755786622106,7.78757786,186.19,186.06,2.99]
[1755786622301,2.98,186.18,186.07,1.87183319]
[1755786622506,2.98,186.18,186.08,1.87183319]
[1755786622702,2.98,186.18,186.06,2.99]
[1755786622904,2.98,186.18,186.07,1.87067475]
[1755786623099,2.98,186.18,186.06,2.99]
[1755786623308,2.98,186.18,186.07,1.87089289]
[1755786623506,2.98,186.18,186.08,1.87089289]
[1755786623701,2.98,186.18,186.06,2.99]
[1755786623896,2.98,186.18,186.07,1.87033335]
[1755786624101,2.98,186.18,186.08,1.87033335]
[1755786624306,2.98,186.18,186.06,8.3652]
[1755786624506,2.98,186.18,186.07,1.86982814]
[1755786624707,371.78757786,186.23,186.09,8.1744]
[1755786624907,371.78757786,186.23,186.09,2.8]
[1755786625102,371.78757786,186.23,186.1,1.86896562]
[1755786625302,371.78757786,186.23,186.11,1.86896562]
[1755786625605,364.0,186.23,186.09,2.8]
[1755786625806,364.0,186.23,186.1,1.86879785]
[1755786626003,364.0,186.23,186.11,1.86879785]
[1755786626204,364.0,186.23,186.09,2.8]
[1755786626399,364.0,186.23,186.1,1.8682191]
[1755786626705,364.0,186.23,186.09,2.8]
[1755786626706,3.04,186.19,186.09,2.8]
[1755786627206,3.04,186.19,186.1,1.86812493]
[1755786627406,3.04,186.19,186.09,2.8]
[1755786627602,3.04,186.19,186.1,1.86790483]
[1755786627809,364.0,186.23,186.09,2.8]
[1755786628106,364.0,186.23,186.1,1.86778263]
[1755786628308,3.04,186.22,186.04,2.8]
[1755786628509,3.04,186.19,186.05,1.86697463]
[1755786628700,3.04,186.19,186.07,2.8]
[1755786628904,3.04,186.19,186.08,1.86697463]
[1755786629106,3.04,186.19,186.09,1.86697463]
[1755786629311,3.04,186.19,186.1,1.86697463]
[1755786629498,3.04,186.19,186.07,2.8]
[1755786630504,3.04,186.19,186.08,1.8663722]
[1755786630706,3.04,186.19,186.07,2.8]
[1755786631007,3.04,186.19,186.08,1.86603723]
[1755786631203,3.04,186.19,186.07,2.8]
[1755786631411,3.04,186.19,186.08,1.86576069]
[1755786631607,3.04,186.19,186.07,2.8]
[1755786631810,3.04,186.19,186.08,1.86584679]
[1755786632004,3.04,186.19,186.07,2.8]
[1755786632210,3.04,186.19,186.08,1.86587839]
[1755786632407,3.04,186.19,186.07,2.8]
[1755786632610,3.04,186.19,186.08,1.89017945]
[1755786632910,3.04,186.19,186.03,2.8]
[1755786633108,3.04,186.15,186.04,1.89032665]
[1755786633307,3.04,186.15,186.05,1.89032665]
[1755786633507,3.04,186.15,186.06,1.89032665]
[1755786633713,3.04,186.15,186.03,2.8]
[1755786634007,3.04,186.15,186.04,1.88960287]
[1755786634323,3.04,186.15,186.05,1.88930223]
[1755786634508,3.04,186.15,185.97,7.78757786]
[1755786634509,3.04,186.15,185.99,2.8]
[1755786634716,3.04,186.15,186.03,5.3762]
[1755786634909,3.04,186.15,186.04,1.88943784]
[1755786635212,3.04,186.11,186.01,2.8]
[1755786635408,3.04,186.16,186.02,1.88895144]
[1755786635608,3.04,186.16,186.03,4.68895144]
[1755786635811,3.04,186.16,186.04,1.88895144]
[1755786636007,3.04,186.16,186.05,1.88895144]
[1755786636212,3.04,186.16,186.03,2.8]
[1755786636508,7.78677606,186.16,186.04,1.88972046]
[1755786636708,7.78677606,186.16,186.05,1.88972046]
[1755786636915,7.78677606,186.16,186.06,1.88882576]
[1755786637107,7.78677606,186.16,186.07,1.88784172]
[1755786637305,7.78677606,186.16,186.03,2.8]
[1755786637513,3.04,186.16,186.06,2.8]
[1755786637712,3.04,186.16,186.07,1.88748196]
[1755786637917,3.04,186.16,186.06,2.8]
[1755786638310,4.74677606,186.11,186.01,2.8]
[1755786638512,3.04,186.1,186.02,1.88816443]
[1755786638818,3.04,186.07,185.96,2.8]
[1755786639007,4.74677606,186.08,185.97,1.88896677]
[1755786639313,4.74677606,186.08,185.98,1.88896677]
[1755786639513,4.74677606,186.08,185.99,1.88896677]
[1755786639809,4.74677606,186.08,186.0,1.88896677]
[1755786640115,4.74677606,186.12,185.92,4.74677606]
[1755786640116,4.74677606,186.04,185.92,8.1792]
[1755786640319,4.74677606,186.04,185.93,1.89034507]
[1755786640510,4.74677606,186.04,185.94,1.89034507]
[1755786640707,4.74677606,186.04,185.95,1.89034507]
[1755786640911,4.74677606,186.04,185.96,1.89034507]
[1755786641112,4.74677606,186.04,185.97,1.89034507]
[1755786641315,4.74677606,186.04,185.98,1.89034507]
[1755786641511,4.74677606,186.04,185.9,7.24791517]
[1755786641710,4.74677606,186.04,185.92,5.3791]
[1755786641917,7.78677606,186.01,185.93,1.88798263]
[1755786642118,7.78677606,186.01,185.94,1.88798263]
[1755786642416,7.78677606,186.01,185.95,1.88798263]
[1755786642617,7.78677606,186.01,185.9,2.8]
[1755786642810,7.78677606,186.01,185.91,1.88851373]
[1755786643013,7.78677606,186.01,185.92,1.88851373]
[1755786643211,7.78677606,186.01,185.93,1.88851373]
[1755786643420,7.78677606,186.01,185.94,1.88780387]
[1755786643619,7.78677606,186.01,185.95,1.88780387]
[1755786643822,7.78677606,186.01,185.9,2.8]
[1755786644022,4.74677606,185.98,185.91,1.88740518]
[1755786644223,4.74677606,185.98,185.92,1.88740518]
[1755786644421,4.74677606,185.98,185.9,2.8]
[1755786644422,3.04,185.97,185.93,1.88740518]
[1755786644616,3.04,185.97,185.9,2.8]
[1755786644819,3.04,185.97,185.91,1.88839973]
[1755786645117,3.04,185.97,185.92,1.88839973]
[1755786645326,3.04,185.97,185.9,2.8]
[1755786645327,3.04,185.97,185.93,1.88839973]
[1755786645517,3.04,185.97,185.9,2.8]
[1755786645719,3.04,185.97,185.91,1.88751759]
[1755786645915,3.04,185.97,185.9,2.8]
[1755786645916,3.04,185.97,185.92,1.88751759]
[1755786646120,3.04,185.98,185.85,2.8]
[1755786646421,4.74677606,185.96,185.86,1.88738721]
[1755786646626,4.74677606,185.96,185.87,1.88738721]
[1755786646627,3.04,185.95,185.87,1.88738721]
[1755786646928,3.04,185.92,185.88,1.88738721]
[1755786647132,3.04,185.92,185.81,2.8]
[1755786647326,3.04,185.92,185.82,1.88811485]
[1755786647528,3.04,185.92,185.83,1.88811485]
[1755786647832,4.74677606,185.9,185.84,1.88811485]
[1755786648133,3.04,185.89,185.77,2.8]
[1755786648325,3.04,185.89,185.78,1.88761479]
[1755786648522,3.04,185.89,185.79,1.88761479]
[1755786648831,4.74677606,185.87,185.8,1.88761479]
[1755786649033,4.74677606,185.87,185.77,2.8]
[1755786649234,4.74677606,185.87,185.78,1.88638355]
[1755786649424,4.74677606,185.87,185.79,1.88638355]
[1755786649628,4.74677606,185.87,185.8,1.88638355]
[1755786649829,4.74677606,185.87,185.77,2.8]
[1755786650032,4.74677606,185.87,185.78,1.88427237]
[1755786650333,3.04,185.86,185.77,2.8]
[1755786650534,3.04,185.86,185.78,1.883022]
[1755786650730,3.04,185.86,185.76,189.38386145]
[1755786650927,4.74677606,185.84,185.77,1.88303049]
[1755786651127,4.74677606,185.84,185.72,2.8]
[1755786651430,4.74677606,185.84,185.73,1.88380091]
[1755786651631,4.74677606,185.84,185.74,1.88380091]
[1755786651831,4.74677606,185.84,185.75,1.88380091]
[1755786652029,4.74677606,185.84,185.76,1.88380091]
[1755786652232,3.04,185.86,185.77,1.88380091]
[1755786652533,3.04,185.86,185.76,2.8]
[1755786652725,3.04,185.86,185.77,1.88337321]
[1755786652726,4.74677606,185.84,185.77,1.88337321]
[1755786652930,4.74677606,185.84,185.74,5.3845]
[1755786653223,3.04,185.86,185.76,2.93]
[1755786653429,3.04,185.86,185.77,1.88309514]
[1755786653631,3.04,185.86,185.78,1.88309514]
[1755786653833,3.04,185.86,185.76,2.93]
[1755786654133,3.04,185.86,185.77,1.88156962]
[1755786654331,3.04,185.86,185.76,2.93]
[1755786654535,3.04,185.86,185.77,1.88034833]
[1755786654739,3.04,185.86,185.76,2.93]
[1755786654947,4.74677606,185.84,185.77,1.88084237]
[1755786655137,4.74677606,185.84,185.71,2.93]
[1755786655138,4.74677606,185.81,185.71,2.93]
[1755786655443,4.74677606,185.81,185.72,1.88232685]
[1755786655642,7.59677606,185.81,185.73,1.88232685]
[1755786655839,7.59677606,185.81,185.71,2.93]
[1755786656041,7.59677606,185.81,185.72,1.8803403]
[1755786656241,7.59677606,185.81,185.71,2.93]
[1755786656437,7.59677606,185.81,185.72,1.87882621]
[1755786656636,4.74677606,185.81,185.73,1.87858397]
[1755786656834,4.74677606,185.81,185.71,2.93]
[1755786657037,4.74677606,185.81,185.72,1.87866254]
[1755786657240,4.74677606,185.81,185.71,8.3151]
[1755786657535,2.85,185.83,185.72,1.87799686]
[1755786657741,2.85,185.83,185.74,2.93]
[1755786659637,2.85,185.83,185.74,8.3144]
[1755786659943,4.74677606,185.81,185.7,2.93]
[1755786660240,4.74677606,185.81,185.71,1.87632099]
[1755786660435,2.85,185.83,185.73,2.93]
[1755786661143,2.85,185.83,185.67,7.67677606]
[1755786661340,4.74677606,185.81,185.69,2.93]
[1755786661536,2.85,185.83,185.71,2.93]
[1755786661737,2.85,185.83,185.72,1.8773452]
[1755786661940,4.74677606,185.82,185.71,2.93]
[1755786662440,4.74677606,185.82,185.72,5.3849]
[1755786662640,4.74677606,185.82,185.71,2.93]
[1755786664138,4.74677606,185.79,185.71,2.93]
[1755786664639,4.74677606,185.84,185.72,1.93179443]
[1755786664845,4.74677606,185.84,185.74,2.93]
[1755786666142,2.85,185.85,185.77,2.93]
[1755786666746,4.74677606,185.84,185.72,2.93]
[1755786666942,4.74677606,185.81,185.73,1.93165818]
[1755786667142,4.74677606,185.81,185.72,2.93]
[1755786667446,2.85,185.83,185.72,2.93]
[1755786667644,4.74677606,185.84,185.72,8.315]
[1755786667839,2.85,185.83,185.72,2.93]
[1755786668042,4.74677606,185.87,185.72,2.93]
[1755786668238,4.74677606,185.87,185.7,4.74677606]
[1755786668239,4.74677606,185.87,185.74,2.93]
[1755786668446,4.74677606,185.87,185.75,1.93051409]
[1755786668643,4.74677606,185.87,185.74,8.3143]
[1755786669044,4.74677606,185.87,185.74,2.93]
[1755786669948,4.74677606,185.87,185.77,5.3834]
[1755786670250,4.74677606,185.87,185.78,2.93]
[1755786670449,2.85,185.88,185.78,2.93]
[1755786670952,2.85,185.88,185.79,5.3829]
[1755786671141,2.85,185.88,185.78,2.93]
[1755786671547,4.74677606,185.9,185.78,2.93]
[1755786671954,2.85,185.91,185.83,5.3818]
[1755786672249,2.85,185.91,185.83,2.93]
[1755786672845,4.74677606,185.9,185.79,2.93]
[1755786673051,4.74677606,185.87,185.79,2.93]
[1755786673349,7.59677606,185.91,185.77,2.93]
[1755786673549,7.59677606,185.91,185.79,5.3829]
[1755786673850,7.59677606,185.91,185.81,2.93]
[1755786673851,2.85,185.91,185.81,2.93]
[1755786674049,7.59677606,185.91,185.81,2.93]
[1755786674351,2.85,185.9,185.77,2.93]
[1755786674553,361.32,185.97,185.77,2.93]
[1755786674554,2.85,185.87,185.78,1.93596977]
[1755786674748,2.85,185.87,185.79,1.93603317]
[1755786675053,2.85,185.87,185.77,2.93]
[1755786675250,2.85,185.87,185.78,1.9369314]
[1755786675449,2.85,185.87,185.79,1.9369314]
[1755786675650,2.85,185.87,185.77,2.93]
[1755786675850,2.85,185.87,185.78,7.32110691]
[1755786676053,4.74677606,185.91,185.8,2.93]
[1755786676253,2.85,185.92,185.81,1.93800691]
[1755786676455,7.59677606,185.92,185.82,1.9388075]
[1755786676649,7.59677606,185.92,185.83,1.9388075]
[1755786676852,7.59677606,185.92,185.8,2.93]
[1755786677051,7.59677606,185.92,185.79,4.74677606]
[1755786677052,2.85,185.92,185.84,2.93]
[1755786677354,4.74677606,185.95,185.85,1.93841637]
[1755786677552,2.85,185.96,185.86,1.93841637]
[1755786677759,2.85,185.96,185.87,4.86841637]
[1755786677955,2.85,185.96,185.88,1.93841637]
[1755786678145,2.85,185.96,185.89,1.93841637]
[1755786678345,2.85,186.0,185.91,2.93]
[1755786678555,2.85,186.0,185.92,1.93841637]
[1755786678753,2.85,186.0,185.93,1.93841637]
[1755786679052,2.85,186.0,185.91,2.93]
[1755786679053,2.85,186.0,185.94,1.93841637]
[1755786679256,2.85,186.0,185.95,1.93841637]
[1755786679465,2.85,186.0,185.91,2.93]
[1755786679757,2.85,186.0,185.92,1.94018552]
[1755786680054,7.59677606,186.05,185.93,1.94008226]
[1755786680249,7.59677606,186.05,185.94,1.94008226]
[1755786680561,7.59677606,186.05,185.95,1.94008226]
[1755786680750,7.59677606,186.05,185.96,1.94008226]
[1755786680952,4.74677606,186.02,185.97,1.94008226]
[1755786681151,2.85,186.01,185.91,2.93]
[1755786681352,2.85,186.01,185.92,1.93972063]
[1755786681551,2.85,186.01,185.93,1.93972063]
[1755786681853,2.85,186.01,185.94,1.93972063]
[1755786682052,2.85,186.01,185.91,2.93]
[1755786682252,2.85,186.01,185.92,1.94094786]
[1755786682455,2.85,186.01,185.93,1.94094786]
[1755786682647,2.85,186.01,185.94,1.94094786]
[1755786682852,2.85,186.01,185.95,1.94094786]
[1755786683055,2.85,186.01,185.96,1.94094786]
[1755786683359,2.85,186.01,185.97,1.94381825]
[1755786683559,2.85,186.01,185.91,2.93]
[1755786683856,7.72677606,186.05,185.92,1.9437747]
[1755786684056,7.72677606,186.05,185.93,1.9437747]
[1755786684361,7.72677606,186.05,185.94,4.8037747]
[1755786684556,7.72677606,186.05,185.95,1.9437747]
[1755786684860,361.7,186.07,185.97,2.86]
[1755786685055,4.74677606,186.08,185.98,1.9437747]
[1755786685262,2.98,186.09,185.99,1.9437747]
[1755786685561,2.98,186.09,186.0,1.9437747]
[1755786685763,2.98,186.09,186.01,1.9437747]
[1755786685953,2.98,186.09,186.02,1.9437747]
[1755786686155,2.98,186.09,186.03,1.9437747]
[1755786686355,2.98,186.09,186.04,1.9437747]
[1755786686559,2.98,186.09,186.05,1.9437747]
[1755786686863,2.98,186.09,186.0,2.86]
[1755786687160,2.98,186.09,186.01,1.93783893]
[1755786687361,2.98,186.09,186.02,1.93783893]
[1755786687550,2.98,186.09,186.03,1.93783893]
[1755786687859,2.98,186.09,186.04,1.93783893]
[1755786688061,2.98,186.09,186.05,1.93783893]
[1755786688357,2.98,186.09,185.96,4.44791517]
[1755786688661,4.74677606,186.08,185.98,2.86]
[1755786688855,4.74677606,186.08,185.99,1.93355024]
[1755786689160,4.74677606,186.08,186.0,1.93355024]
[1755786689358,4.74677606,186.08,186.01,1.93355024]
[1755786689562,4.74677606,186.08,186.02,1.93355024]
[1755786689763,4.74677606,186.05,185.92,4.44791517]
[1755786689956,2.98,186.04,185.93,1.93321838]
[1755786690156,4.74677606,186.08,185.95,2.86]
[1755786690457,2.98,186.07,185.96,1.93321838]
[1755786690759,4.74677606,186.05,185.97,1.93321838]
[1755786690952,4.74677606,186.05,185.98,1.93321838]
[1755786691149,4.74677606,186.05,185.95,2.86]
[1755786691353,4.74677606,186.05,185.96,1.93153615]
[1755786691553,4.74677606,186.05,185.97,1.93153615]
[1755786691754,4.74677606,186.05,185.98,1.93153615]
[1755786691755,2.98,186.04,185.98,1.93153615]
[1755786691959,2.98,186.04,185.91,2.86]
[1755786692264,2.98,186.04,185.96,5.3778]
[1755786692458,7.72677606,186.08,185.97,1.93091534]
[1755786692760,7.72677606,186.08,185.99,2.86]
[1755786693861,7.72677606,186.08,185.94,2.86]
[1755786694160,7.72677606,186.08,185.95,1.91751094]
[1755786694352,7.72677606,186.08,185.96,1.91751094]
[1755786694558,7.72677606,186.08,185.97,1.91751094]
[1755786694758,7.72677606,186.08,185.98,1.91652807]
[1755786694957,7.72677606,186.08,185.97,2.86]
[1755786695165,7.72677606,186.08,185.98,7.29306896]
[1755786695359,2.98,186.07,185.92,7.60677606]
[1755786695560,4.74677606,186.05,185.93,1.9157399]
[1755786695759,4.74677606,186.05,185.94,1.9157399]
[1755786695760,2.98,186.04,185.94,1.9157399]
[1755786695961,2.98,186.04,185.95,1.9157399]
[1755786696258,2.98,186.04,185.92,2.86]
[1755786696459,2.98,186.04,185.93,1.91658308]
[1755786696758,7.72677606,186.05,185.94,1.91613002]
[1755786696957,2.98,186.05,185.95,1.91613002]
[1755786697162,2.98,186.05,185.92,2.86]
[1755786697363,2.98,186.05,185.93,1.91530869]
[1755786697564,2.98,186.05,185.94,1.91530869]
[1755786697862,2.98,186.05,185.92,2.86]
[1755786698062,2.98,186.05,185.93,1.9140211]
[1755786698259,4.74677606,186.03,185.92,2.86]
[1755786698459,4.74677606,186.03,185.93,7.29304701]
[1755786698668,4.74677606,186.03,185.93,5.3789]
[1755786698860,4.74677606,186.03,185.92,2.86]
[1755786699066,2.98,186.02,185.92,2.86]
[1755786699561,2.98,186.02,185.93,1.91475376]
[1755786699765,2.98,186.02,185.94,1.91475376]
[1755786699965,2.98,186.02,185.92,8.2391]
[1755786700166,2.98,186.02,185.92,2.86]
[1755786700370,2.98,186.02,185.93,1.91678707]
[1755786700569,2.98,186.02,185.92,2.86]
[1755786700771,7.72677606,186.06,185.93,1.91669005]
[1755786700966,2.98,186.05,185.94,5.3785]
[1755786701168,4.74677606,186.03,185.92,2.86]
[1755786701372,4.74677606,186.03,185.93,1.91664193]
[1755786701564,4.74677606,186.03,185.94,1.91664193]
[1755786701877,2.98,186.05,185.94,2.86]
[1755786702068,4.74677606,186.03,185.94,2.86]
[1755786702367,2.98,186.02,185.94,2.86]
[1755786702569,4.74677606,186.06,185.95,1.91929907]
[1755786702771,4.74677606,186.03,185.94,2.86]
[1755786704070,2.98,186.02,185.9,2.86]
[1755786704273,2.98,186.02,185.91,1.9229842]
[1755786704472,2.98,186.02,185.92,7.3019842]
[1755786704772,4.74677606,186.0,185.9,2.86]
[1755786704966,4.74677606,186.0,185.91,1.92265139]
[1755786705170,4.74677606,186.0,185.9,8.2396]
[1755786705470,4.74677606,186.0,185.91,1.92372968]
[1755786705767,4.74677606,186.0,185.92,1.92372968]
[1755786705972,4.74677606,186.0,185.9,2.86]
[1755786705973,2.98,185.99,185.9,2.86]
[1755786706171,2.98,185.99,185.91,1.92440875]
[1755786706374,4.74677606,185.97,185.84,4.44791517]
[1755786706572,4.74677606,185.97,185.86,2.86]
[1755786706771,2.98,185.96,185.87,1.92599016]
[1755786706976,4.74677606,185.94,185.88,1.92599016]
[1755786707174,4.74677606,185.94,185.86,2.86]
[1755786707475,4.74677606,185.94,185.87,1.92851024]
[1755786707670,2.98,185.96,185.88,1.92759074]
[1755786707871,2.98,185.96,185.89,1.92695831]
[1755786708071,2.98,185.96,185.9,1.92680574]
[1755786708271,2.98,185.96,185.87,5.3805]
[1755786708571,2.98,185.96,185.88,1.92888291]
[1755786708773,2.98,185.96,185.89,1.92888291]
[1755786708973,2.98,185.96,185.9,1.92888291]
[1755786709172,2.98,185.95,185.91,1.93136058]
[1755786709474,2.98,185.95,185.87,5.3804]
[1755786709672,2.98,185.95,185.88,1.93104586]
[1755786709977,2.98,185.93,185.89,1.93104586]
[1755786710173,7.72677606,185.91,185.8,124.74473439]
[1755786710375,7.72677606,185.91,185.81,1.93291946]
[1755786710573,7.72677606,185.91,185.82,1.93291946]
[1755786710774,7.72677606,185.91,185.83,1.93291946]
[1755786710974,7.72677606,185.91,185.84,1.93291946]
[1755786711279,7.72677606,185.9,185.85,1.93291946]
[1755786711578,7.72677606,185.9,185.8,120.29681922]
[1755786711778,7.72677606,185.9,185.81,1.93427748]
[1755786712082,7.72677606,185.9,185.82,1.93427748]
[1755786712271,7.72677606,185.9,185.83,1.93427748]
[1755786712475,7.72677606,185.9,185.84,1.93427748]
[1755786712675,2.84,185.89,185.85,1.93427748]
[1755786712875,2.84,185.89,185.8,120.29681922]
[1755786713171,2.84,185.89,185.82,5.382]
[1755786713477,2.84,185.89,185.83,1.93362661]
[1755786713672,2.84,185.88,185.84,1.93362661]
[1755786713871,2.84,185.89,185.85,1.93362661]
[1755786714071,7.58677606,185.87,185.79,5.44915]
[1755786714274,0.93652865,185.92,185.79,5.44915]
[1755786714275,2.84,185.83,185.8,1.93606841]
[1755786714471,2.84,185.83,185.81,1.93606841]
[1755786714675,2.84,185.83,185.79,2.58915]
[1755786714879,2.84,185.83,185.8,1.93591994]
[1755786715074,4.74677606,185.9,185.81,1.93591994]
[1755786715279,2.84,185.83,185.79,2.58915]
[1755786715473,2.84,185.82,185.8,1.93543048]
[1755786715681,2.84,185.82,185.81,1.93543048]
[1755786715872,4.74677606,185.84,185.81,1.93543048]
[1755786716075,2.84,185.83,185.79,2.58915]
[1755786716483,2.84,185.83,185.8,1.93523454]
[1755786716686,4.74677606,185.84,185.81,1.93523454]
[1755786716986,4.74677606,185.84,185.82,1.93523454]
[1755786717190,4.74677606,185.87,185.79,2.58915]
[1755786717482,0.93652865,185.92,185.79,2.58915]
[1755786717483,4.74677606,185.84,185.8,1.93529651]
[1755786717681,4.74677606,185.84,185.81,1.93529651]
[1755786717682,2.84,185.83,185.81,1.93529651]
[1755786717886,2.84,185.83,185.79,2.58915]
[1755786718078,2.84,185.83,185.8,1.93541819]
[1755786718283,4.74677606,185.84,185.81,1.93541819]
[1755786718586,2.84,185.82,185.79,2.58915]
[1755786718786,7.58677606,185.84,185.8,1.93442144]
[1755786718988,2.84,185.83,185.79,2.58915]
[1755786719188,2.84,185.83,185.8,1.93419959]
[1755786719382,2.84,185.81,185.79,2.58915]
[1755786719589,2.84,185.8,185.79,2.58915]
[1755786720187,4.74677606,185.81,185.79,2.58915]
[1755786720386,7.58677606,185.84,185.79,2.58915]
[1755786720590,140.07652865,185.92,185.8,1.93399974]
[1755786720591,4.74677606,185.86,185.8,1.93399974]
[1755786720786,4.74677606,185.86,185.81,1.93399974]
[1755786720989,4.74677606,185.83,185.79,2.58915]
[1755786721184,2.84,185.82,185.79,2.58915]
[1755786721380,4.74677606,185.83,185.79,2.58915]
[1755786721587,4.74677606,185.86,185.8,1.93280002]
[1755786721782,4.74677606,185.86,185.81,1.93233644]
[1755786722087,7.58677606,185.86,185.79,5.55915]
[1755786722282,7.58677606,185.86,185.8,1.93291831]
[1755786722490,7.58677606,185.86,185.79,2.58915]
[1755786722690,7.58677606,185.83,185.79,2.58915]
[1755786722894,2.84,185.82,185.79,2.58915]
[1755786723191,2.84,185.83,185.79,2.58915]
[1755786723391,4.74677606,185.82,185.79,2.58915]
[1755786724192,2.84,185.81,185.79,2.58915]
[1755786724390,0.93652865,185.92,185.79,2.58915]
[1755786724391,4.74677606,185.85,185.79,2.58915]
[1755786725091,4.74677606,185.88,185.79,2.58915]
[1755786725296,4.74677606,185.88,185.8,1.92023546]
[1755786725495,4.74677606,185.88,185.81,1.92023546]
[1755786725693,4.74677606,185.88,185.82,1.92023546]
[1755786725996,4.74677606,185.88,185.79,2.58915]
[1755786726196,4.74677606,185.88,185.8,1.92043915]
[1755786726393,4.74677606,185.85,185.81,1.92043915]
[1755786726602,4.74677606,185.85,185.79,2.58915]
[1755786726603,2.84,185.84,185.79,2.58915]
[1755786727397,4.74677606,185.88,185.79,5.55915]
[1755786727894,4.74677606,185.88,185.8,1.92010622]
[1755786728092,4.74677606,185.85,185.79,5.55915]
[1755786728291,4.74677606,185.85,185.79,2.58915]
[1755786728692,4.74677606,185.88,185.79,2.58915]
[1755786729086,2.84,185.87,185.79,2.58915]
[1755786729687,4.74677606,185.88,185.79,2.58915]
[1755786729895,7.58677606,185.91,185.81,2.97]
[1755786730593,4.74677606,185.91,185.79,2.58915]
[1755786730893,4.74677606,185.88,185.79,2.58915]
[1755786731093,4.74677606,185.88,185.79,5.55915]
[1755786731402,4.74677606,185.88,185.8,2.42411494]
[1755786731589,4.74677606,185.88,185.81,2.42411494]
[1755786731795,2.84,185.84,185.82,2.42411494]
[1755786732099,4.74677606,185.85,185.83,2.42411494]
[1755786732293,4.74677606,185.85,185.84,2.42411494]
[1755786733094,7.58677606,185.88,185.84,2.42411494]
[1755786733292,7.58677606,185.88,185.85,2.42411494]
[1755786733492,7.58677606,185.88,185.86,2.42411494]
[1755786733698,7.58677606,185.88,185.79,5.55915]
[1755786733699,7.58677606,185.88,185.87,2.42411494]
[1755786733997,7.58677606,185.88,185.87,2.42519003]
[1755786734398,5.76044215,185.88,185.79,5.55915]
[1755786734605,2.92044215,185.83,185.79,2.58915]
[1755786734802,2.92044215,185.83,185.8,2.97]
[1755786734996,2.92044215,185.83,185.79,2.58915]
[1755786735195,2.92044215,185.83,185.8,2.97]
[1755786735598,2.92044215,185.87,185.8,2.97]
[1755786735799,2.92044215,185.9,185.8,2.97]
[1755786736904,2.92044215,185.9,185.82,5.382]
[1755786737297,2.92044215,185.9,185.83,2.97]
[1755786738503,2.92044215,185.93,185.83,2.97]
[1755786738692,2.92044215,185.9,185.83,2.97]
[1755786739904,2.92044215,185.87,185.79,5.55915]
[1755786741703,2.92044215,185.87,185.79,10.94205]
[1755786741897,2.92044215,185.87,185.79,5.55915]